[Event "44th Chess Olympiad Women 2022"]
[Site "Chennai"]
[Date "2022.08.07"]
[Round "9.37"]
[White "Khalil, Manar"]
[Black "Ramirez Gonzalez, Maria Jose"]
[Result "1-0"]
[WhiteElo "1831"]
[BlackElo "1809"]
[Annotator "NA"]
[PlyCount "103"]
[EventDate "2022.??.??"]
[TimeControl "60"]

1. e4 {[%emt 0:00:05]} d6 {[%emt 0:00:02]} 2. d4 {[%emt 0:00:19]} e5 {[%emt 0:
00:00]} 3. Nf3 {[%emt 0:00:32]} Nd7 {[%emt 0:00:15]} 4. c3 {[%emt 0:03:19]}
Ngf6 {[%emt 0:01:16]} 5. Bd3 {[%emt 0:00:55]} Be7 {[%emt 0:00:58]} 6. O-O {
[%emt 0:01:15]} c6 {[%emt 0:00:21]} 7. a4 {[%emt 0:00:46]} Qc7 {[%emt 0:00:39]}
8. Na3 {[%emt 0:02:26]} h6 {[%emt 0:00:37]} 9. Re1 {[%emt 0:00:56]} g5 {
[%emt 0:03:43]} 10. Nc4 {[%emt 0:03:46]} g4 {[%emt 0:04:48]} 11. dxe5 {[%emt 0:
00:00]} dxe5 {[%emt 0:01:02]} 12. Nfd2 {[%emt 0:02:44]} Nf8 {[%emt 0:05:48]}
13. Ne3 {[%emt 0:05:12]} Ng6 {[%emt 0:02:48]} 14. Nf5 {[%emt 0:02:15]} Nf4 {
[%emt 0:14:53]} 15. Nc4 {[%emt 0:02:41]} Nxd3 {[%emt 0:10:37]} 16. Qxd3 {
[%emt 0:00:13]} Bxf5 {[%emt 0:01:05]} 17. exf5 {[%emt 0:00:16]} e4 {[%emt 0:00:
00]} 18. Qe2 {[%emt 0:03:20]} Qd7 {[%emt 0:05:05]} 19. Be3 {[%emt 0:11:43]} h5
{[%emt 0:06:57]} 20. Bd4 {[%emt 0:05:20]} Qxf5 {[%emt 0:11:00]} 21. Bxf6 {
[%emt 0:02:27]} Qxf6 {[%emt 0:00:08]} 22. Qxe4 {[%emt 0:00:20]} Kf8 {[%emt 0:
00:00]} 23. Ne3 {[%emt 0:06:34]} Bc5 {[%emt 0:04:15]} 24. Nf5 {[%emt 0:01:36]}
Rg8 {[%emt 0:03:59]} 25. b4 {[%emt 0:05:09]} Rg5 {[%emt 0:02:23]} 26. Ne3 {
[%emt 0:04:01]} Bxe3 {[%emt 0:00:18]} 27. Qxe3 {[%emt 0:01:05]} Rd5 {[%emt 0:
00:00]} 28. c4 {[%emt 0:03:31]} Rd4 {[%emt 0:01:23]} 29. Rac1 {[%emt 0:01:01]}
Rad8 {[%emt 0:00:23]} 30. h3 {[%emt 0:02:59]} a6 {[%emt 0:00:37]} 31. b5 {
[%emt 0:04:06]} axb5 {[%emt 0:00:32]} 32. axb5 {[%emt 0:00:06]} h4 {[%emt 0:00:
00]} 33. hxg4 {[%emt 0:06:20]} Rxg4 {[%emt 0:01:01]} 34. b6 {[%emt 0:02:35]}
Rg5 {[%emt 0:04:48]} 35. Rcd1 {[%emt 0:03:27]} Rxd1 {[%emt 0:00:44]} 36. Rxd1 {
[%emt 0:00:04]} Re5 {[%emt 0:01:07]} 37. Qh3 {[%emt 0:04:17]} Qe7 {[%emt 0:00:
00]} 38. Qc8+ {[%emt 0:03:45]} Kg7 {[%emt 0:00:13]} 39. Qc7 {[%emt 0:00:31]}
Kf6 {[%emt 0:01:10]} 40. Rd6+ {[%emt 0:01:15]} Kg7 {[%emt 0:00:39]} 41. Rd7 {
[%emt 0:31:18]} Re1+ {[%emt 0:05:57]} 42. Kh2 {[%emt 0:00:00]} Qf6 {[%emt 0:00:
00]} 43. f3 {[%emt 0:00:00]} Re5 {[%emt 0:04:46]} 44. Rxf7+ {[%emt 0:00:00]}
Qxf7 {[%emt 0:00:12]} 45. Qxe5+ {[%emt 0:00:00]} Kf8 {[%emt 0:01:54]} 46. Qb8+
{[%emt 0:00:00]} Qe8 {[%emt 0:03:53]} 47. Qxe8+ {[%emt 0:00:00]} Kxe8 {[%emt 0:
00:00]} 48. Kh3 {[%emt 0:00:00]} c5 {[%emt 0:00:58]} 49. Kxh4 {[%emt 0:00:00]}
Kd7 {[%emt 0:00:04]} 50. g4 {[%emt 0:00:00]} Kc6 {[%emt 0:00:56]} 51. g5 {
[%emt 0:00:00]} Kxb6 {[%emt 0:01:06]} 52. g6 {[%emt 0:00:00]} 1-0

[Event "44th Chess Olympiad Women 2022"]
[Site "Chennai"]
[Date "2022.08.07"]
[Round "9.37"]
[White "Rodriguez Arrieta, Maria Elena"]
[Black "Mahmoud, Roula"]
[Result "1-0"]
[WhiteElo "1849"]
[BlackElo "1765"]
[Annotator "NA"]
[PlyCount "121"]
[EventDate "2022.??.??"]
[TimeControl "60"]

1. e4 {[%emt 0:00:59]} c5 {[%emt 0:00:06]} 2. Nf3 {[%emt 0:00:04]} Nc6 {
[%emt 0:00:04]} 3. Bb5 {[%emt 0:00:04]} e6 {[%emt 0:00:08]} 4. Bxc6 {[%emt 0:
00:00]} bxc6 {[%emt 0:00:06]} 5. O-O {[%emt 0:00:39]} d5 {[%emt 0:02:28]} 6. d3
{[%emt 0:00:08]} Nf6 {[%emt 0:08:37]} 7. Nbd2 {[%emt 0:01:02]} Be7 {[%emt 0:00:
00]} 8. Qe2 {[%emt 0:03:23]} O-O {[%emt 0:00:33]} 9. Re1 {[%emt 0:08:37]} Ba6 {
[%emt 0:05:52]} 10. b3 {[%emt 0:03:18]} Qc7 {[%emt 0:02:47]} 11. Bb2 {[%emt 0:
00:00]} Nd7 {[%emt 0:01:36]} 12. h3 {[%emt 0:06:52]} Bf6 {[%emt 0:04:07]} 13.
Bxf6 {[%emt 0:05:01]} Nxf6 {[%emt 0:00:07]} 14. e5 {[%emt 0:00:04]} Nd7 {
[%emt 0:00:29]} 15. Ng5 {[%emt 0:01:32]} h6 {[%emt 0:03:31]} 16. Ngf3 {[%emt 0:
00:00]} Rab8 {[%emt 0:07:33]} 17. a3 {[%emt 0:03:42]} Qa5 {[%emt 0:01:56]} 18.
Nf1 {[%emt 0:02:07]} Qc3 {[%emt 0:13:13]} 19. Ng3 {[%emt 0:01:04]} c4 {[%emt 0:
00:00]} 20. dxc4 {[%emt 0:00:18]} Nc5 {[%emt 0:03:40]} 21. Red1 {[%emt 0:02:39]
} dxc4 {[%emt 0:01:32]} 22. b4 {[%emt 0:00:24]} Na4 {[%emt 0:05:52]} 23. Rdb1 {
[%emt 0:09:37]} f5 {[%emt 0:02:22]} 24. exf6 {[%emt 0:00:05]} Qxf6 {[%emt 0:00:
00]} 25. Ne4 {[%emt 0:00:05]} Qf4 {[%emt 0:04:02]} 26. Re1 {[%emt 0:02:38]}
Rbd8 {[%emt 0:02:20]} 27. Qe3 {[%emt 0:06:33]} Qc7 {[%emt 0:03:44]} 28. Rad1 {
[%emt 0:00:59]} Bc8 {[%emt 0:04:53]} 29. Rd4 {[%emt 0:02:41]} Nb6 {[%emt 0:00:
00]} 30. Nc5 {[%emt 0:01:50]} Rde8 {[%emt 0:01:56]} 31. Re4 {[%emt 0:05:25]}
Nd5 {[%emt 0:01:00]} 32. Qd4 {[%emt 0:00:08]} Nf4 {[%emt 0:01:27]} 33. Ne5 {
[%emt 0:01:13]} g5 {[%emt 0:04:59]} 34. Qxc4 {[%emt 0:00:41]} Rf6 {[%emt 0:00:
00]} 35. Ncd3 {[%emt 0:02:32]} Nxd3 {[%emt 0:02:23]} 36. Nxd3 {[%emt 0:00:08]}
Ref8 {[%emt 0:01:18]} 37. R1e2 {[%emt 0:00:30]} Kg7 {[%emt 0:00:36]} 38. Nc5 {
[%emt 0:04:13]} Qb6 {[%emt 0:02:15]} 39. Qd4 {[%emt 0:02:11]} e5 {[%emt 0:00:
00]} 40. Rxe5 {[%emt 0:00:27]} Qb5 {[%emt 0:00:56]} 41. Re7+ {[%emt 0:32:24]}
Kg8 {[%emt 0:01:11]} 42. c4 {[%emt 0:00:00]} Qb6 {[%emt 0:04:10]} 43. Qc3 {
[%emt 0:00:00]} Qd8 {[%emt 0:01:09]} 44. Rxa7 {[%emt 0:00:00]} Qd1+ {[%emt 0:
00:00]} 45. Re1 {[%emt 0:00:00]} Qh5 {[%emt 0:01:12]} 46. Ree7 {[%emt 0:00:00]}
Qd1+ {[%emt 0:02:00]} 47. Kh2 {[%emt 0:00:00]} Qd6+ {[%emt 0:02:32]} 48. Qg3 {
[%emt 0:00:00]} Rd8 {[%emt 0:01:22]} 49. Qxd6 {[%emt 0:00:00]} Rfxd6 {[%emt 0:
00:00]} 50. Re2 {[%emt 0:00:00]} h5 {[%emt 0:01:02]} 51. Rae7 {[%emt 0:00:00]}
g4 {[%emt 0:00:13]} 52. Re8+ {[%emt 0:00:00]} Kf7 {[%emt 0:00:21]} 53. Rxd8 {
[%emt 0:00:00]} Rxd8 {[%emt 0:00:08]} 54. hxg4 {[%emt 0:00:00]} hxg4 {[%emt 0:
00:00]} 55. Kg3 {[%emt 0:00:00]} Kf6 {[%emt 0:00:38]} 56. a4 {[%emt 0:00:00]}
Rd4 {[%emt 0:00:42]} 57. Rc2 {[%emt 0:00:00]} Ke5 {[%emt 0:01:55]} 58. a5 {
[%emt 0:00:00]} Kd6 {[%emt 0:00:42]} 59. a6 {[%emt 0:00:00]} Kc7 {[%emt 0:00:
00]} 60. a7 {[%emt 0:00:00]} Bb7 {[%emt 0:00:07]} 61. Ne6+ {[%emt 0:00:00]} 1-0

[Event "44th Chess Olympiad Women 2022"]
[Site "Chennai"]
[Date "2022.08.07"]
[Round "9.38"]
[White "Jannatul, Ferdous"]
[Black "A-ALI, Sali Abbas Abdulzah"]
[Result "1/2-1/2"]
[WhiteElo "1815"]
[BlackElo "1864"]
[Annotator "NA RC"]
[PlyCount "68"]
[EventDate "2022.??.??"]
[TimeControl "60"]

1. e4 {[%emt 0:00:34]} e6 {[%emt 0:00:09]} 2. d4 {[%emt 0:00:04]} d5 {[%emt 0:
00:00]} 3. Nc3 {[%emt 0:00:04]} dxe4 {[%emt 0:00:06]} 4. Nxe4 {[%emt 0:00:05]}
Nd7 {[%emt 0:00:11]} 5. Nf3 {[%emt 0:00:30]} Ngf6 {[%emt 0:00:07]} 6. Nxf6+ {
[%emt 0:00:09]} Nxf6 {[%emt 0:00:05]} 7. Bd3 {[%emt 0:00:31]} Be7 {[%emt 0:00:
00]} 8. c3 {[%emt 0:00:24]} O-O {[%emt 0:00:13]} 9. O-O {[%emt 0:00:03]} b6 {
[%emt 0:00:19]} 10. h3 {[%emt 0:01:39]} Bb7 {[%emt 0:00:20]} 11. Re1 {[%emt 0:
00:00]} c5 {[%emt 0:02:10]} 12. dxc5 {[%emt 0:00:40]} Bxc5 {[%emt 0:00:14]} 13.
Bg5 {[%emt 0:01:03]} Be7 {[%emt 0:03:55]} 14. Qe2 {[%emt 0:00:36]} Qc7 {
[%emt 0:01:13]} 15. Ne5 {[%emt 0:04:37]} Rad8 {[%emt 0:13:57]} 16. Rad1 {
[%emt 0:00:48]} Ba8 {[%emt 0:03:04]} 17. Kh1 {[%emt 0:12:31]} Qb7 {[%emt 0:00:
00]} 18. f4 {[%emt 0:06:35]} h6 {[%emt 0:07:52]} 19. Bxf6 {[%emt 0:02:20]} Bxf6
{[%emt 0:02:37]} 20. Bb5 {[%emt 0:01:40]} Bxe5 {[%emt 0:06:19]} 21. fxe5 {
[%emt 0:00:20]} Rd5 {[%emt 0:01:01]} 22. Rxd5 {[%emt 0:04:52]} Qxd5 {[%emt 0:
00:00]} 23. c4 {[%emt 0:00:36]} Qd4 {[%emt 0:02:12]} 24. Rd1 {[%emt 0:01:40]}
Qh4 {[%emt 0:00:14]} 25. Rd7 {[%emt 0:04:22]} Qxh3+ {[%emt 0:01:12]} 26. Kg1 {
[%emt 0:00:05]} Qg3 {[%emt 0:00:26]} 27. Rxa7 {[%emt 0:02:22]} Rd8 {[%emt 0:00:
00]} 28. Rd7 {[%emt 0:04:30]} Qg5 {[%emt 0:03:35]} 29. Qf2 {[%emt 0:25:17]}
Rxd7 {[%emt 0:01:25]} 30. Bxd7 {[%emt 0:05:36]} Qxe5 {[%emt 0:02:03]} 31. Qxb6
{[%emt 0:01:55]} Qe1+ {[%emt 0:01:09]} 32. Kh2 {[%emt 0:00:29]} Qh4+ {[%emt 0:
00:00]} 33. Kg1 {[%emt 0:00:08]} Qe1+ {[%emt 0:01:50]} 34. Kh2 {[%emt 0:00:39]}
Qh4+ {[%emt 0:00:28]} 1/2-1/2

[Event "44th Chess Olympiad Women 2022"]
[Site "Chennai"]
[Date "2022.08.07"]
[Round "9.38"]
[White "Sara Masood Abdullah"]
[Black "Noshin, Anjum"]
[Result "0-1"]
[WhiteElo "1677"]
[BlackElo "2027"]
[Annotator "NA"]
[PlyCount "94"]
[EventDate "2022.??.??"]
[TimeControl "60"]

1. e4 {[%emt 0:00:03]} e5 {[%emt 0:00:07]} 2. Nf3 {[%emt 0:00:10]} Nc6 {
[%emt 0:00:06]} 3. Nc3 {[%emt 0:00:07]} Nf6 {[%emt 0:00:06]} 4. d4 {[%emt 0:00:
00]} exd4 {[%emt 0:00:23]} 5. Nxd4 {[%emt 0:00:06]} Bb4 {[%emt 0:01:17]} 6.
Nxc6 {[%emt 0:00:57]} bxc6 {[%emt 0:00:17]} 7. Bd3 {[%emt 0:00:41]} d5 {
[%emt 0:01:24]} 8. exd5 {[%emt 0:04:49]} cxd5 {[%emt 0:00:33]} 9. O-O {[%emt 0:
00:00]} O-O {[%emt 0:00:04]} 10. a3 {[%emt 0:01:07]} Be7 {[%emt 0:05:17]} 11.
Bf4 {[%emt 0:04:45]} c6 {[%emt 0:02:48]} 12. Qf3 {[%emt 0:01:56]} Bd6 {[%emt 0:
00:00]} 13. h3 {[%emt 0:04:23]} Rb8 {[%emt 0:03:33]} 14. b3 {[%emt 0:03:56]}
Be6 {[%emt 0:12:29]} 15. Rad1 {[%emt 0:06:21]} Bxf4 {[%emt 0:08:44]} 16. Qxf4 {
[%emt 0:01:35]} Qa5 {[%emt 0:03:40]} 17. Na4 {[%emt 0:06:44]} c5 {[%emt 0:00:
00]} 18. Rb1 {[%emt 0:04:32]} Bd7 {[%emt 0:09:50]} 19. g4 {[%emt 0:08:43]} c4 {
[%emt 0:15:36]} 20. Bf5 {[%emt 0:02:17]} Bxf5 {[%emt 0:05:25]} 21. gxf5 {
[%emt 0:07:08]} Rbe8 {[%emt 0:04:57]} 22. Kh2 {[%emt 0:04:03]} Re4 {[%emt 0:00:
00]} 23. Qg3 {[%emt 0:01:30]} Nh5 {[%emt 0:00:48]} 24. Qg5 {[%emt 0:00:44]}
Qc7+ {[%emt 0:02:08]} 25. Kh1 {[%emt 0:00:41]} g6 {[%emt 0:00:44]} 26. Rg1 {
[%emt 0:02:36]} Nf4 {[%emt 0:01:43]} 27. Rg3 {[%emt 0:02:30]} Qe5 {[%emt 0:00:
00]} 28. fxg6 {[%emt 0:06:35]} Re1+ {[%emt 0:02:45]} 29. Rxe1 {[%emt 0:00:21]}
Qxe1+ {[%emt 0:00:06]} 30. Rg1 {[%emt 0:00:14]} Qe4+ {[%emt 0:00:08]} 31. Kh2 {
[%emt 0:00:11]} fxg6 {[%emt 0:00:26]} 32. Nc5 {[%emt 0:07:11]} Qd4 {[%emt 0:00:
00]} 33. Nd7 {[%emt 0:00:14]} Qxf2+ {[%emt 0:00:13]} 34. Rg2 {[%emt 0:01:17]}
Qxg2+ {[%emt 0:00:16]} 35. Qxg2 {[%emt 0:00:04]} Nxg2 {[%emt 0:00:04]} 36. Nxf8
{[%emt 0:00:07]} cxb3 {[%emt 0:01:26]} 37. cxb3 {[%emt 0:00:13]} Kxf8 {[%emt 0:
00:00]} 38. Kxg2 {[%emt 0:00:11]} g5 {[%emt 0:00:12]} 39. Kf3 {[%emt 0:00:38]}
h5 {[%emt 0:00:25]} 40. b4 {[%emt 0:02:10]} Ke7 {[%emt 0:00:10]} 41. a4 {
[%emt 0:31:36]} Kd6 {[%emt 0:30:13]} 42. Ke3 {[%emt 0:01:01]} h4 {[%emt 0:00:
00]} 43. Kf3 {[%emt 0:00:59]} Ke5 {[%emt 0:00:26]} 44. b5 {[%emt 0:00:14]} Kd6
{[%emt 0:00:40]} 45. a5 {[%emt 0:00:20]} Kc5 {[%emt 0:00:14]} 46. b6 {[%emt 0:
00:00]} axb6 {[%emt 0:00:04]} 47. a6 {[%emt 0:00:14]} Kc6 {[%emt 0:00:03]} 0-1

[Event "44th Chess Olympiad Women 2022"]
[Site "Chennai"]
[Date "2022.08.07"]
[Round "9.38"]
[White "Sultana, Sharmin Shirin"]
[Black "Al-Fayyadh, Zainab Asif Abdulah"]
[Result "1-0"]
[WhiteElo "1995"]
[BlackElo "1749"]
[Annotator "NA RC"]
[PlyCount "105"]
[EventDate "2022.??.??"]
[TimeControl "60"]

1. d4 {[%emt 0:00:05]} d5 {[%emt 0:00:04]} 2. c4 {[%emt 0:00:08]} e6 {[%emt 0:
00:00]} 3. Nc3 {[%emt 0:00:08]} Nf6 {[%emt 0:00:05]} 4. cxd5 {[%emt 0:00:14]}
exd5 {[%emt 0:00:41]} 5. Bg5 {[%emt 0:00:07]} Be7 {[%emt 0:00:06]} 6. e3 {
[%emt 0:00:17]} O-O {[%emt 0:00:07]} 7. Bd3 {[%emt 0:00:16]} Nbd7 {[%emt 0:00:
00]} 8. Nf3 {[%emt 0:01:27]} c6 {[%emt 0:01:44]} 9. Qc2 {[%emt 0:00:39]} h6 {
[%emt 0:03:50]} 10. Bh4 {[%emt 0:00:32]} Re8 {[%emt 0:00:21]} 11. O-O {[%emt 0:
00:00]} Ne4 {[%emt 0:03:54]} 12. Bxe7 {[%emt 0:00:52]} Qxe7 {[%emt 0:00:08]}
13. Rae1 {[%emt 0:01:16]} Nf8 {[%emt 0:04:22]} 14. Ne5 {[%emt 0:12:16]} f6 {
[%emt 0:08:24]} 15. Nf3 {[%emt 0:03:26]} Bf5 {[%emt 0:06:04]} 16. Nh4 {[%emt 0:
00:00]} Bh7 {[%emt 0:01:23]} 17. f3 {[%emt 0:01:05]} f5 {[%emt 0:12:27]} 18.
Nxf5 {[%emt 0:12:26]} Bxf5 {[%emt 0:00:44]} 19. fxe4 {[%emt 0:00:04]} dxe4 {
[%emt 0:04:29]} 20. Bc4+ {[%emt 0:03:35]} Be6 {[%emt 0:01:01]} 21. Nxe4 {
[%emt 0:00:05]} Bxc4 {[%emt 0:01:46]} 22. Qxc4+ {[%emt 0:00:03]} Qe6 {[%emt 0:
00:00]} 23. Nd6 {[%emt 0:08:38]} Qxc4 {[%emt 0:02:00]} 24. Nxc4 {[%emt 0:00:02]
} Ne6 {[%emt 0:00:32]} 25. Rc1 {[%emt 0:09:24]} Rad8 {[%emt 0:04:24]} 26. Rfd1
{[%emt 0:05:20]} Nc7 {[%emt 0:02:47]} 27. Ne5 {[%emt 0:02:09]} Nd5 {[%emt 0:00:
00]} 28. Kf2 {[%emt 0:02:38]} Rd6 {[%emt 0:13:28]} 29. Ke2 {[%emt 0:02:28]} g5
{[%emt 0:04:30]} 30. g3 {[%emt 0:01:54]} Kg7 {[%emt 0:02:22]} 31. a3 {[%emt 0:
00:00]} h5 {[%emt 0:02:57]} 32. Rf1 {[%emt 0:01:05]} Rf6 {[%emt 0:05:02]} 33.
e4 {[%emt 0:04:44]} Rxf1 {[%emt 0:04:00]} 34. Rxf1 {[%emt 0:00:02]} Nf6 {
[%emt 0:00:19]} 35. Rf5 {[%emt 0:02:20]} Nxe4 {[%emt 0:01:51]} 36. Kd3 {
[%emt 0:00:16]} Nf6 {[%emt 0:01:19]} 37. Rxg5+ {[%emt 0:00:19]} Kh7 {[%emt 0:
00:00]} 38. Rf5 {[%emt 0:03:24]} Kg7 {[%emt 0:00:26]} 39. b4 {[%emt 0:02:37]}
a6 {[%emt 0:00:16]} 40. h3 {[%emt 0:00:41]} Re7 {[%emt 0:00:35]} 41. Kc4 {
[%emt 0:37:00]} Rc7 {[%emt 0:36:56]} 42. Kc5 {[%emt 0:06:34]} Re7 {[%emt 0:00:
00]} 43. Kc4 {[%emt 0:00:00]} Re8 {[%emt 0:00:00]} 44. a4 {[%emt 0:00:00]} b5+
{[%emt 0:00:00]} 45. axb5 {[%emt 0:00:00]} cxb5+ {[%emt 0:00:00]} 46. Kc5 {
[%emt 0:00:00]} Rd8 {[%emt 0:00:00]} 47. Nc6 {[%emt 0:00:00]} Rd7 {[%emt 0:00:
00]} 48. Re5 {[%emt 0:00:00]} Kg6 {[%emt 0:00:00]} 49. d5 {[%emt 0:00:09]} Rg7
{[%emt 0:00:00]} 50. Re3 {[%emt 0:01:23]} Nd7+ {[%emt 0:00:00]} 51. Kd6 {
[%emt 0:01:13]} Nb6 {[%emt 0:00:00]} 52. Ke6 {[%emt 0:00:27]} Rf7 {[%emt 0:00:
00]} 53. Ne5+ {[%emt 0:00:11]} 1-0

[Event "44th Chess Olympiad Women 2022"]
[Site "Chennai"]
[Date "2022.08.07"]
[Round "9.38"]
[White "Tiba, Mahdi Attiyah"]
[Black "Khan, Nazrana"]
[Result "0-1"]
[WhiteElo "1759"]
[BlackElo "1829"]
[Annotator "NA RC"]
[PlyCount "78"]
[EventDate "2022.??.??"]
[TimeControl "60"]

1. e4 {[%emt 0:00:04]} c5 {[%emt 0:00:12]} 2. c3 {[%emt 0:00:07]} d5 {[%emt 0:
00:00]} 3. exd5 {[%emt 0:00:07]} Qxd5 {[%emt 0:00:06]} 4. d4 {[%emt 0:00:12]}
Nf6 {[%emt 0:00:28]} 5. Nf3 {[%emt 0:00:19]} e6 {[%emt 0:00:35]} 6. Na3 {
[%emt 0:01:33]} cxd4 {[%emt 0:02:05]} 7. Nb5 {[%emt 0:00:20]} Qd8 {[%emt 0:00:
00]} 8. Qxd4 {[%emt 0:00:42]} Qxd4 {[%emt 0:04:09]} 9. Nfxd4 {[%emt 0:01:26]}
Na6 {[%emt 0:00:42]} 10. Bf4 {[%emt 0:01:43]} Bc5 {[%emt 0:08:03]} 11. Be2 {
[%emt 0:22:19]} O-O {[%emt 0:01:55]} 12. Bf3 {[%emt 0:02:09]} e5 {[%emt 0:00:
00]} 13. Bg3 {[%emt 0:32:41]} exd4 {[%emt 0:00:21]} 14. cxd4 {[%emt 0:01:47]}
Bb4+ {[%emt 0:00:52]} 15. Kd1 {[%emt 0:01:36]} Bg4 {[%emt 0:03:01]} 16. Bxg4 {
[%emt 0:05:57]} Nxg4 {[%emt 0:00:31]} 17. a3 {[%emt 0:01:34]} Ba5 {[%emt 0:00:
00]} 18. d5 {[%emt 0:02:19]} f5 {[%emt 0:03:49]} 19. h3 {[%emt 0:07:45]} Nf6 {
[%emt 0:01:45]} 20. d6 {[%emt 0:01:04]} Ne4 {[%emt 0:03:13]} 21. b4 {[%emt 0:
00:00]} Bd8 {[%emt 0:05:02]} 22. Re1 {[%emt 0:03:22]} Bf6 {[%emt 0:02:32]} 23.
Rc1 {[%emt 0:01:25]} Rad8 {[%emt 0:00:47]} 24. Rc2 {[%emt 0:01:27]} Nb8 {
[%emt 0:01:17]} 25. Bh2 {[%emt 0:01:24]} Nc6 {[%emt 0:06:34]} 26. f3 {[%emt 0:
00:00]} Ng5 {[%emt 0:08:56]} 27. Nc7 {[%emt 0:00:31]} Nd4 {[%emt 0:03:50]} 28.
Rd2 {[%emt 0:00:35]} Rd7 {[%emt 0:02:44]} 29. h4 {[%emt 0:00:38]} Ngxf3 {
[%emt 0:03:49]} 30. gxf3 {[%emt 0:00:45]} Nxf3 {[%emt 0:00:25]} 31. Re8 {
[%emt 0:00:26]} Rxe8 {[%emt 0:02:37]} 32. Nxe8 {[%emt 0:00:12]} Nxd2 {[%emt 0:
00:00]} 33. Nxf6+ {[%emt 0:00:38]} gxf6 {[%emt 0:00:14]} 34. Kxd2 {[%emt 0:00:
00]} h5 {[%emt 0:01:03]} 35. Kc3 {[%emt 0:00:41]} Kf7 {[%emt 0:00:20]} 36. Kc4
{[%emt 0:00:07]} Ke6 {[%emt 0:00:22]} 37. Kc5 {[%emt 0:00:43]} Rd8 {[%emt 0:00:
00]} 38. Bf4 {[%emt 0:00:35]} Rc8+ {[%emt 0:01:19]} 39. Kd4 {[%emt 0:00:25]} b5
{[%emt 0:00:49]} 0-1

[Event "44th Chess Olympiad Women 2022"]
[Site "Chennai"]
[Date "2022.08.07"]
[Round "9.39"]
[White "Bagga, Khushi"]
[Black "Miranda Vargas, Analia Karen"]
[Result "0-1"]
[WhiteElo "1328"]
[BlackElo "1723"]
[Annotator "NA"]
[PlyCount "104"]
[EventDate "2022.??.??"]
[TimeControl "60"]

1. e4 {[%emt 0:00:01]} g6 {[%emt 0:00:04]} 2. d4 {[%emt 0:00:06]} Bg7 {[%emt 0:
00:00]} 3. Nc3 {[%emt 0:00:09]} d6 {[%emt 0:00:05]} 4. Be3 {[%emt 0:00:07]} Nf6
{[%emt 0:00:14]} 5. Qd2 {[%emt 0:00:23]} Ng4 {[%emt 0:01:05]} 6. Bg5 {[%emt 0:
00:00]} h6 {[%emt 0:06:40]} 7. Bh4 {[%emt 0:00:30]} O-O {[%emt 0:04:06]} 8. f3
{[%emt 0:02:17]} Nf6 {[%emt 0:01:11]} 9. O-O-O {[%emt 0:00:21]} a5 {[%emt 0:00:
00]} 10. Bf2 {[%emt 0:02:49]} c6 {[%emt 0:14:15]} 11. g4 {[%emt 0:11:59]} b5 {
[%emt 0:05:56]} 12. Be3 {[%emt 0:06:34]} h5 {[%emt 0:11:48]} 13. gxh5 {[%emt 0:
00:00]} Nxh5 {[%emt 0:00:07]} 14. f4 {[%emt 0:01:32]} Nf6 {[%emt 0:04:22]} 15.
f5 {[%emt 0:09:20]} b4 {[%emt 0:04:20]} 16. Nb1 {[%emt 0:00:15]} Nxe4 {[%emt 0:
00:00]} 17. Qg2 {[%emt 0:04:50]} Bxf5 {[%emt 0:00:25]} 18. Bd3 {[%emt 0:00:52]}
d5 {[%emt 0:00:28]} 19. Ne2 {[%emt 0:02:08]} a4 {[%emt 0:00:36]} 20. a3 {
[%emt 0:01:53]} bxa3 {[%emt 0:01:40]} 21. Nxa3 {[%emt 0:00:55]} Na6 {[%emt 0:
00:00]} 22. Ng3 {[%emt 0:02:45]} Nxg3 {[%emt 0:00:43]} 23. hxg3 {[%emt 0:03:15]
} Bxd3 {[%emt 0:00:25]} 24. Qh3 {[%emt 0:07:46]} f6 {[%emt 0:05:37]} 25. Rxd3 {
[%emt 0:05:26]} Kf7 {[%emt 0:00:31]} 26. Re1 {[%emt 0:02:48]} Rh8 {[%emt 0:00:
00]} 27. Qg4 {[%emt 0:01:04]} Qc8 {[%emt 0:00:55]} 28. Qe2 {[%emt 0:01:27]} Qe6
{[%emt 0:06:34]} 29. Qf2 {[%emt 0:02:20]} Qg4 {[%emt 0:03:36]} 30. Bd2 {
[%emt 0:04:03]} Rab8 {[%emt 0:06:14]} 31. Rf3 {[%emt 0:03:50]} Qd7 {[%emt 0:00:
00]} 32. Rfe3 {[%emt 0:02:41]} Rhe8 {[%emt 0:01:10]} 33. Qf3 {[%emt 0:02:34]}
Qb7 {[%emt 0:00:52]} 34. Bc3 {[%emt 0:00:44]} Bh6 {[%emt 0:00:06]} 35. Qf2 {
[%emt 0:02:43]} Nc7 {[%emt 0:02:22]} 36. Kd1 {[%emt 0:03:03]} Bxe3 {[%emt 0:00:
00]} 37. Qxe3 {[%emt 0:00:20]} Nb5 {[%emt 0:00:17]} 38. Nxb5 {[%emt 0:02:31]}
Qxb5 {[%emt 0:00:12]} 39. Qe6+ {[%emt 0:02:31]} Kg7 {[%emt 0:00:06]} 40. g4 {
[%emt 0:00:19]} Qb7 {[%emt 0:02:39]} 41. Kd2 {[%emt 0:05:18]} Qc8 {[%emt 0:00:
00]} 42. Qe2 {[%emt 0:00:35]} Qc7 {[%emt 0:00:32]} 43. Kc1 {[%emt 0:01:04]}
Qf4+ {[%emt 0:03:55]} 44. Kb1 {[%emt 0:03:32]} Qg3 {[%emt 0:00:34]} 45. Kc1 {
[%emt 0:02:55]} a3 {[%emt 0:00:10]} 46. Qd2 {[%emt 0:02:47]} a2 {[%emt 0:01:36]
} 47. b3 {[%emt 0:00:08]} Qxg4 {[%emt 0:00:29]} 48. Qd3 {[%emt 0:00:28]} Qf5 {
[%emt 0:00:51]} 49. Qe2 {[%emt 0:01:02]} Ra8 {[%emt 0:02:48]} 50. Ba1 {[%emt 0:
00:00]} Qf4+ {[%emt 0:01:05]} 51. Kd1 {[%emt 0:00:34]} Qf5 {[%emt 0:01:31]} 52.
Rf1 {[%emt 0:01:43]} Qh5 {[%emt 0:00:36]} 0-1

[Event "44th Chess Olympiad Women 2022"]
[Site "Chennai"]
[Date "2022.08.07"]
[Round "9.39"]
[White "Chong, Kimberly"]
[Black "Ortiz Verdezoto, Anahi"]
[Result "0-1"]
[WhiteElo "1741"]
[BlackElo "2046"]
[Annotator "NA RC"]
[PlyCount "62"]
[EventDate "2022.??.??"]
[TimeControl "60"]

1. e4 {[%emt 0:00:04]} e5 {[%emt 0:00:13]} 2. Nf3 {[%emt 0:00:06]} Nc6 {
[%emt 0:00:36]} 3. Bc4 {[%emt 0:00:18]} Bc5 {[%emt 0:00:06]} 4. c3 {[%emt 0:00:
00]} Nf6 {[%emt 0:00:15]} 5. d3 {[%emt 0:00:33]} a6 {[%emt 0:00:24]} 6. Bb3 {
[%emt 0:02:28]} d6 {[%emt 0:02:23]} 7. h3 {[%emt 0:01:55]} h6 {[%emt 0:03:01]}
8. O-O {[%emt 0:00:21]} Ba7 {[%emt 0:00:05]} 9. Re1 {[%emt 0:01:42]} g5 {
[%emt 0:00:18]} 10. g4 {[%emt 0:16:20]} Qe7 {[%emt 0:06:23]} 11. Be3 {[%emt 0:
00:00]} Bxe3 {[%emt 0:04:16]} 12. Rxe3 {[%emt 0:04:27]} Na5 {[%emt 0:01:14]}
13. d4 {[%emt 0:09:06]} Nxb3 {[%emt 0:02:19]} 14. Qxb3 {[%emt 0:01:05]} h5 {
[%emt 0:00:17]} 15. Nxg5 {[%emt 0:09:16]} hxg4 {[%emt 0:05:23]} 16. hxg4 {
[%emt 0:02:45]} Nxg4 {[%emt 0:00:31]} 17. Rh3 {[%emt 0:07:26]} Rg8 {[%emt 0:00:
00]} 18. Nd2 {[%emt 0:12:47]} Qxg5 {[%emt 0:01:33]} 19. Nf3 {[%emt 0:01:03]}
Qf4 {[%emt 0:01:33]} 20. Rg3 {[%emt 0:06:43]} Nf6 {[%emt 0:00:22]} 21. Rxg8+ {
[%emt 0:01:30]} Nxg8 {[%emt 0:00:03]} 22. c4 {[%emt 0:01:59]} Bh3 {[%emt 0:00:
00]} 23. Nh2 {[%emt 0:03:15]} Qg5+ {[%emt 0:00:14]} 24. Qg3 {[%emt 0:00:09]}
Qxg3+ {[%emt 0:00:04]} 25. fxg3 {[%emt 0:00:03]} exd4 {[%emt 0:01:19]} 26. g4 {
[%emt 0:00:15]} Nf6 {[%emt 0:00:07]} 27. g5 {[%emt 0:02:52]} Nxe4 {[%emt 0:00:
00]} 28. Re1 {[%emt 0:00:17]} Bf5 {[%emt 0:00:04]} 29. Nf3 {[%emt 0:01:05]} d3
{[%emt 0:01:52]} 30. Nd2 {[%emt 0:01:02]} Kf8 {[%emt 0:00:04]} 31. Nxe4 {
[%emt 0:00:28]} Re8 {[%emt 0:00:07]} 0-1